[Event "*** Titled Tuesday Blitz"]
[Site "Chess.com"]
[Date "2021.04.06"]
[Round "4"]
[White "MITerryble"]
[Black "Shahaliyev"]
[Result "1-0"]
[WhiteElo "2904"]
[BlackElo "2650"]
[TimeControl "180+1"]
[EndTime "10:38:23 PDT"]
[Termination "MITerryble won by resignation"]

1. e4 {[%clk 0:02:58.7]} 1... d6 {[%clk 0:03:00.3]} 2. d4 {[%clk 0:02:57.6]}
2... Nf6 {[%clk 0:02:59.5]} 3. Nc3 {[%clk 0:02:55.9]} 3... e5 {[%clk 0:02:59.8]}
4. dxe5 {[%clk 0:02:41.2]} 4... dxe5 {[%clk 0:03:00.7]} 5. Qxd8+ {[%clk
0:02:41.5]} 5... Kxd8 {[%clk 0:03:01.6]} 6. Bg5 {[%clk 0:02:39.6]} 6... Be6
{[%clk 0:03:01.3]} 7. O-O-O+ {[%clk 0:02:39.5]} 7... Nd7 {[%clk 0:02:58]} 8. f3
{[%clk 0:02:36.1]} 8... c6 {[%clk 0:02:47.6]} 9. Nge2 {[%clk 0:02:33.1]} 9...
Bc5 {[%clk 0:02:38.5]} 10. Kb1 {[%clk 0:02:29]} 10... Kc7 {[%clk 0:02:32.5]} 11.
Nc1 {[%clk 0:02:28.7]} 11... b5 {[%clk 0:02:25.7]} 12. Be2 {[%clk 0:02:08.8]}
12... h6 {[%clk 0:02:25.8]} 13. Bh4 {[%clk 0:02:06.2]} 13... Nh5 {[%clk
0:02:18.9]} 14. Nd3 {[%clk 0:01:58.9]} 14... Bd4 {[%clk 0:02:15.6]} 15. Be1
{[%clk 0:01:57.7]} 15... Ndf6 {[%clk 0:01:50.1]} 16. g4 {[%clk 0:01:53]} 16...
Nxg4 {[%clk 0:01:21.9]} 17. fxg4 {[%clk 0:01:52.6]} 17... Nf6 {[%clk 0:01:22.8]}
18. h3 {[%clk 0:01:43.6]} 18... Rhd8 {[%clk 0:01:21.6]} 19. Bg3 {[%clk
0:01:41.2]} 19... Nd7 {[%clk 0:01:21.8]} 20. Bf3 {[%clk 0:01:36.8]} 20... f6
{[%clk 0:01:21.8]} 21. Ne2 {[%clk 0:01:37.1]} 21... Bb6 {[%clk 0:01:21.7]} 22.
Rd2 {[%clk 0:01:35.2]} 22... c5 {[%clk 0:01:22.1]} 23. Rhd1 {[%clk 0:01:34.2]}
23... a5 {[%clk 0:01:21.7]} 24. Ne1 {[%clk 0:01:29.6]} 24... c4 {[%clk
0:01:20.7]} 25. Ng2 {[%clk 0:01:29.5]} 25... g5 {[%clk 0:01:14.1]} 26. Nc3
{[%clk 0:01:29.4]} 26... b4 {[%clk 0:01:10.7]} 27. Nb5+ {[%clk 0:01:28.4]} 27...
Kb7 {[%clk 0:01:08.5]} 28. Nd6+ {[%clk 0:01:17.7]} 28... Kc7 {[%clk 0:01:06.4]}
29. Nf5 {[%clk 0:01:17.6]} 29... c3 {[%clk 0:00:57.7]} 30. Rd6 {[%clk
0:01:14.2]} 30... Bxf5 {[%clk 0:00:43.6]} 31. exf5 {[%clk 0:01:13.6]} 31... Nc5
{[%clk 0:00:44.1]} 32. Rc6+ {[%clk 0:01:05.9]} 1-0

[Event "*** Titled Tuesday Blitz"]
[Site "Chess.com"]
[Date "2021.04.06"]
[Round "4"]
[White "Keures"]
[Black "Maddie"]
[Result "1-0"]
[WhiteElo "2352"]
[BlackElo "2063"]
[TimeControl "180+1"]
[EndTime "10:38:25 PDT"]
[Termination "Keures won by checkmate"]

1. d4 {[%clk 0:03:00.3]} 1... d5 {[%clk 0:02:59.9]} 2. c4 {[%clk 0:02:59.2]}
2... c6 {[%clk 0:02:58.9]} 3. Nc3 {[%clk 0:02:58.9]} 3... Nf6 {[%clk 0:02:59.5]}
4. Nf3 {[%clk 0:02:58]} 4... dxc4 {[%clk 0:02:59.3]} 5. a4 {[%clk 0:02:57.5]}
5... Nd5 {[%clk 0:02:57.3]} 6. e4 {[%clk 0:02:55.3]} 6... Nxc3 {[%clk
0:02:56.7]} 7. bxc3 {[%clk 0:02:56.2]} 7... b5 {[%clk 0:02:57]} 8. Ne5 {[%clk
0:02:55.3]} 8... Qd6 {[%clk 0:02:31.8]} 9. Qf3 {[%clk 0:02:48.2]} 9... Qf6
{[%clk 0:02:31.4]} 10. Bf4 {[%clk 0:02:37]} 10... g6 {[%clk 0:02:18.4]} 11. Ng4
{[%clk 0:02:23.8]} 11... Bxg4 {[%clk 0:02:15.3]} 12. Qxg4 {[%clk 0:02:21.6]}
12... Nd7 {[%clk 0:02:15]} 13. axb5 {[%clk 0:02:20.2]} 13... cxb5 {[%clk
0:02:13.7]} 14. e5 {[%clk 0:01:58]} 14... Qc6 {[%clk 0:01:58.6]} 15. Be2 {[%clk
0:01:57.6]} 15... h5 {[%clk 0:01:40.6]} 16. Bf3 {[%clk 0:01:45.8]} 16... Qb6
{[%clk 0:01:32]} 17. Qh3 {[%clk 0:01:34.4]} 17... Rd8 {[%clk 0:01:26.4]} 18. e6
{[%clk 0:01:32]} 18... Nf6 {[%clk 0:01:21.9]} 19. Rxa7 {[%clk 0:01:17.1]} 19...
Qxa7 {[%clk 0:01:08.7]} 20. Bc6+ {[%clk 0:01:13.4]} 20... Nd7 {[%clk 0:01:08.9]}
21. O-O {[%clk 0:01:00.8]} 21... fxe6 {[%clk 0:01:05.5]} 22. Qxe6 {[%clk
0:01:00.8]} 22... Bg7 {[%clk 0:00:56.9]} 23. Qxg6+ {[%clk 0:00:55.8]} 23... Kf8
{[%clk 0:00:56.5]} 24. Bd5 {[%clk 0:00:50.8]} 24... e6 {[%clk 0:00:53.6]} 25.
Bd6+ {[%clk 0:00:31.6]} 25... Kg8 {[%clk 0:00:51.4]} 26. Bxe6# {[%clk
0:00:31.2]} 1-0

[Event "*** Titled Tuesday Blitz"]
[Site "Chess.com"]
[Date "2021.04.06"]
[Round "4"]
[White "volkanyirik"]
[Black "Make_it_shine060"]
[Result "1-0"]
[WhiteElo "2416"]
[BlackElo "2202"]
[TimeControl "180+1"]
[EndTime "10:38:27 PDT"]
[Termination "volkanyirik won by checkmate"]

1. e4 {[%clk 0:03:00.9]} 1... c5 {[%clk 0:02:58.9]} 2. Nc3 {[%clk 0:03:01.8]}
2... Nc6 {[%clk 0:02:57.8]} 3. f4 {[%clk 0:03:02.7]} 3... g6 {[%clk 0:02:56.7]}
4. Bc4 {[%clk 0:03:02.6]} 4... Bg7 {[%clk 0:02:55.6]} 5. Nf3 {[%clk 0:03:00.9]}
5... d6 {[%clk 0:02:51.9]} 6. O-O {[%clk 0:03:01.1]} 6... Nf6 {[%clk 0:02:51.2]}
7. h3 {[%clk 0:03:01.3]} 7... O-O {[%clk 0:02:46.8]} 8. d3 {[%clk 0:03:01.5]}
8... Nd4 {[%clk 0:02:44.9]} 9. Be3 {[%clk 0:02:58.4]} 9... Nd7 {[%clk
0:02:41.6]} 10. Qd2 {[%clk 0:02:55.9]} 10... Rb8 {[%clk 0:02:40.3]} 11. a4
{[%clk 0:02:55.1]} 11... a6 {[%clk 0:02:37]} 12. a5 {[%clk 0:02:54.8]} 12... Nc6
{[%clk 0:02:36.6]} 13. f5 {[%clk 0:02:46.1]} 13... Nxa5 {[%clk 0:02:28.3]} 14.
Ba2 {[%clk 0:02:45.9]} 14... b5 {[%clk 0:02:16.3]} 15. Ng5 {[%clk 0:02:45.4]}
15... c4 {[%clk 0:02:09.9]} 16. Qf2 {[%clk 0:02:31.9]} 16... Nc5 {[%clk
0:01:51.1]} 17. Qh4 {[%clk 0:02:23.3]} 17... h6 {[%clk 0:01:30.8]} 18. Nf3
{[%clk 0:02:21.4]} 18... Kh7 {[%clk 0:01:26.8]} 19. Bg5 {[%clk 0:02:08.6]} 19...
Re8 {[%clk 0:01:00.6]} 20. Nd5 {[%clk 0:02:07.7]} 20... Nc6 {[%clk 0:00:45]} 21.
dxc4 {[%clk 0:02:05.5]} 21... b4 {[%clk 0:00:43.8]} 22. f6 {[%clk 0:01:36.2]}
22... exf6 {[%clk 0:00:20]} 23. Nxf6+ {[%clk 0:01:34.5]} 23... Bxf6 {[%clk
0:00:19.2]} 24. Bxf6 {[%clk 0:01:35.4]} 24... Qb6 {[%clk 0:00:14]} 25. Ng5+
{[%clk 0:01:34.9]} 25... Kg8 {[%clk 0:00:13.6]} 26. Qxh6 {[%clk 0:01:34.3]}
26... Nxe4+ {[%clk 0:00:12.8]} 27. Kh2 {[%clk 0:01:31.7]} 27... Nxf6 {[%clk
0:00:09]} 28. Rxf6 {[%clk 0:01:31.6]} 28... Ne5 {[%clk 0:00:07.5]} 29. Qh7+
{[%clk 0:01:30.6]} 29... Kf8 {[%clk 0:00:07.3]} 30. Rxf7+ {[%clk 0:01:31.5]}
30... Nxf7 {[%clk 0:00:07.3]} 31. Qxf7# {[%clk 0:01:32.4]} 1-0

[Event "*** Titled Tuesday Blitz"]
[Site "Chess.com"]
[Date "2021.04.06"]
[Round "4"]
[White "KhamzinOlzhas"]
[Black "Schack-Hugo"]
[Result "1-0"]
[WhiteElo "2482"]
[BlackElo "2192"]
[TimeControl "180+1"]
[EndTime "10:38:31 PDT"]
[Termination "KhamzinOlzhas won by checkmate"]

1. c4 {[%clk 0:03:00.9]} 1... c5 {[%clk 0:02:59.9]} 2. Nc3 {[%clk 0:03:00.5]}
2... Nc6 {[%clk 0:03:00]} 3. Nf3 {[%clk 0:03:01.1]} 3... g6 {[%clk 0:03:00.5]}
4. e3 {[%clk 0:03:01.6]} 4... Bg7 {[%clk 0:03:00.1]} 5. d4 {[%clk 0:03:02.5]}
5... cxd4 {[%clk 0:03:00.8]} 6. exd4 {[%clk 0:03:03.4]} 6... d6 {[%clk
0:02:59.5]} 7. d5 {[%clk 0:03:02.6]} 7... Ne5 {[%clk 0:02:59.4]} 8. Nxe5 {[%clk
0:03:03.3]} 8... Bxe5 {[%clk 0:02:58.9]} 9. Be2 {[%clk 0:03:04]} 9... Bg7 {[%clk
0:02:57.7]} 10. h4 {[%clk 0:03:03.5]} 10... h5 {[%clk 0:02:55.8]} 11. O-O {[%clk
0:02:59.3]} 11... Nf6 {[%clk 0:02:55.2]} 12. Bg5 {[%clk 0:03:00.1]} 12... Bg4
{[%clk 0:02:52]} 13. f3 {[%clk 0:02:32.3]} 13... Bf5 {[%clk 0:02:21.1]} 14. Qd2
{[%clk 0:02:32.5]} 14... Rc8 {[%clk 0:01:56.9]} 15. Rfe1 {[%clk 0:02:31.2]}
15... Nd7 {[%clk 0:00:59.6]} 16. Bf1 {[%clk 0:02:28.7]} 16... f6 {[%clk
0:00:17.9]} 17. Be3 {[%clk 0:02:23.9]} 17... Ne5 {[%clk 0:00:17.7]} 18. b3
{[%clk 0:02:24.5]} 18... a6 {[%clk 0:00:16.4]} 19. a4 {[%clk 0:02:23.4]} 19...
Qd7 {[%clk 0:00:13.4]} 20. a5 {[%clk 0:02:21.4]} 20... g5 {[%clk 0:00:10.7]} 21.
Na4 {[%clk 0:02:20.3]} 21... gxh4 {[%clk 0:00:05.9]} 22. Nb6 {[%clk 0:02:21.2]}
22... Qd8 {[%clk 0:00:06.3]} 23. Nxc8 {[%clk 0:02:17]} 23... Qxc8 {[%clk
0:00:07.2]} 24. f4 {[%clk 0:02:10]} 24... Ng4 {[%clk 0:00:06.7]} 25. Bd4 {[%clk
0:02:10.7]} 25... Bh6 {[%clk 0:00:04.4]} 26. b4 {[%clk 0:02:07.3]} 26... Rg8
{[%clk 0:00:04.6]} 27. c5 {[%clk 0:02:07]} 27... h3 {[%clk 0:00:04.6]} 28. cxd6
{[%clk 0:02:07.4]} 28... hxg2 {[%clk 0:00:03.2]} 29. Rxe7+ {[%clk 0:02:07.2]}
29... Kd8 {[%clk 0:00:03.2]} 30. Bb6+ {[%clk 0:02:05.3]} 30... Qc7 {[%clk
0:00:02.1]} 31. Bxc7+ {[%clk 0:02:01.8]} 31... Kc8 {[%clk 0:00:02.6]} 32. Bxg2
{[%clk 0:01:57.8]} 32... h4 {[%clk 0:00:03]} 33. Kh1 {[%clk 0:01:57.4]} 33... h3
{[%clk 0:00:03]} 34. Bf3 {[%clk 0:01:58]} 34... Be4 {[%clk 0:00:01.7]} 35. Rxe4
{[%clk 0:01:56.8]} 35... f5 {[%clk 0:00:01.6]} 36. Bxg4 {[%clk 0:01:55.5]} 36...
fxg4 {[%clk 0:00:01.5]} 37. Re8+ {[%clk 0:01:54.7]} 37... Rxe8 {[%clk
0:00:01.3]} 38. Re1 {[%clk 0:01:53.9]} 38... Rg8 {[%clk 0:00:01.2]} 39. Qe2
{[%clk 0:01:49.9]} 39... g3 {[%clk 0:00:02.1]} 40. Qe6# {[%clk 0:01:50.2]} 1-0

[Event "*** Titled Tuesday Blitz"]
[Site "Chess.com"]
[Date "2021.04.06"]
[Round "4"]
[White "KIEV-1"]
[Black "Ural_bogatyr"]
[Result "0-1"]
[WhiteElo "2270"]
[BlackElo "2467"]
[TimeControl "180+1"]
[EndTime "10:38:32 PDT"]
[Termination "Ural_bogatyr won by resignation"]

1. e4 {[%clk 0:02:55.3]} 1... e5 {[%clk 0:02:59.1]} 2. Nf3 {[%clk 0:02:55.2]}
2... Nc6 {[%clk 0:02:59.6]} 3. Bc4 {[%clk 0:02:55.5]} 3... Nf6 {[%clk
0:02:59.4]} 4. d3 {[%clk 0:02:55.9]} 4... h6 {[%clk 0:02:59.3]} 5. Nc3 {[%clk
0:02:54.9]} 5... d6 {[%clk 0:02:59.8]} 6. h3 {[%clk 0:02:55]} 6... g5 {[%clk
0:02:59.5]} 7. Be3 {[%clk 0:02:38.4]} 7... Bg7 {[%clk 0:02:58.9]} 8. d4 {[%clk
0:02:31.8]} 8... g4 {[%clk 0:02:56.3]} 9. hxg4 {[%clk 0:02:12.7]} 9... Bxg4
{[%clk 0:02:55.8]} 10. d5 {[%clk 0:02:13.1]} 10... Ne7 {[%clk 0:02:54.1]} 11.
Bb5+ {[%clk 0:02:13]} 11... c6 {[%clk 0:02:52.8]} 12. dxc6 {[%clk 0:02:13.3]}
12... bxc6 {[%clk 0:02:53.7]} 13. Ba4 {[%clk 0:02:13.8]} 13... h5 {[%clk
0:02:45.9]} 14. Qd3 {[%clk 0:02:05.2]} 14... O-O {[%clk 0:02:41.3]} 15. Nh4
{[%clk 0:01:16.4]} 15... d5 {[%clk 0:02:35.2]} 16. f3 {[%clk 0:01:10.4]} 16...
Be6 {[%clk 0:02:31.5]} 17. Bc5 {[%clk 0:01:07.5]} 17... d4 {[%clk 0:02:15.6]}
18. Ne2 {[%clk 0:01:06]} 18... Ng6 {[%clk 0:02:08.8]} 19. Nxg6 {[%clk
0:01:00.6]} 19... fxg6 {[%clk 0:02:07.8]} 20. Bxf8 {[%clk 0:00:57.7]} 20... Bxf8
{[%clk 0:02:08.7]} 21. Bb3 {[%clk 0:00:34.2]} 21... Bxb3 {[%clk 0:02:07.6]} 22.
axb3 {[%clk 0:00:33.3]} 22... Bh6 {[%clk 0:02:04.1]} 23. f4 {[%clk 0:00:29.8]}
23... Ng4 {[%clk 0:02:01.7]} 24. fxe5 {[%clk 0:00:26.8]} 24... Nxe5 {[%clk
0:02:00.7]} 25. Qxd4 {[%clk 0:00:26.7]} 25... Qg5 {[%clk 0:01:48.5]} 26. Rxa7
{[%clk 0:00:21.7]} 26... Rd8 {[%clk 0:01:45.8]} 27. Qc3 {[%clk 0:00:19.7]} 27...
Qd2+ {[%clk 0:01:33.1]} 28. Qxd2 {[%clk 0:00:19.6]} 28... Bxd2+ {[%clk 0:01:34]}
29. Kf1 {[%clk 0:00:18.6]} 29... Rf8+ {[%clk 0:01:31]} 30. Kg1 {[%clk
0:00:18.3]} 30... Be3+ {[%clk 0:01:31]} 31. Kh2 {[%clk 0:00:18.5]} 31... Ng4+
{[%clk 0:01:25.8]} 32. Kg3 {[%clk 0:00:18.7]} 32... Bf2+ {[%clk 0:01:23.6]} 33.
Kh3 {[%clk 0:00:19.1]} 33... Bxa7 {[%clk 0:01:23.4]} 34. Ng3 {[%clk 0:00:14.1]}
34... Nf2+ {[%clk 0:01:22.4]} 0-1

[Event "*** Titled Tuesday Blitz"]
[Site "Chess.com"]
[Date "2021.04.06"]
[Round "4"]
[White "Treacherous_horse64"]
[Black "Ginger_GM"]
[Result "1-0"]
[WhiteElo "2421"]
[BlackElo "2549"]
[TimeControl "180+1"]
[EndTime "10:38:33 PDT"]
[Termination "Treacherous_horse64 won on time"]

1. d4 {[%clk 0:02:59.9]} 1... e6 {[%clk 0:02:59.7]} 2. e4 {[%clk 0:02:51.1]}
2... b6 {[%clk 0:02:57.3]} 3. Nd2 {[%clk 0:02:47.6]} 3... Bb7 {[%clk 0:02:56.6]}
4. c3 {[%clk 0:02:45.8]} 4... Nh6 {[%clk 0:02:51.2]} 5. Bd3 {[%clk 0:02:45.3]}
5... f5 {[%clk 0:02:50.8]} 6. Qe2 {[%clk 0:02:42]} 6... Be7 {[%clk 0:02:47.4]}
7. Ngf3 {[%clk 0:02:40.6]} 7... O-O {[%clk 0:02:44.8]} 8. O-O {[%clk 0:02:36.8]}
8... c5 {[%clk 0:02:36.8]} 9. Re1 {[%clk 0:02:31.7]} 9... cxd4 {[%clk
0:02:30.3]} 10. cxd4 {[%clk 0:02:31.7]} 10... Nc6 {[%clk 0:02:02.9]} 11. a3
{[%clk 0:02:19.9]} 11... fxe4 {[%clk 0:01:40.3]} 12. Nxe4 {[%clk 0:02:20.8]}
12... Nf5 {[%clk 0:01:39.9]} 13. Ng3 {[%clk 0:02:12.9]} 13... Ncxd4 {[%clk
0:01:33]} 14. Nxd4 {[%clk 0:02:11.8]} 14... Nxd4 {[%clk 0:01:33.2]} 15. Qh5
{[%clk 0:02:03.6]} 15... Nf5 {[%clk 0:01:16.7]} 16. Nxf5 {[%clk 0:01:57.5]}
16... exf5 {[%clk 0:01:16.9]} 17. Bxf5 {[%clk 0:01:51.2]} 17... g6 {[%clk
0:00:48.1]} 18. Bxg6 {[%clk 0:01:50.4]} 18... hxg6 {[%clk 0:00:45.2]} 19. Qxg6+
{[%clk 0:01:51.3]} 19... Kh8 {[%clk 0:00:45.1]} 20. Re5 {[%clk 0:01:28.9]} 20...
Bf3 {[%clk 0:00:22.7]} 21. gxf3 {[%clk 0:01:27.6]} 21... Bg5 {[%clk 0:00:19.9]}
22. Rxg5 {[%clk 0:01:06.2]} 1-0

[Event "*** Titled Tuesday Blitz"]
[Site "Chess.com"]
[Date "2021.04.06"]
[Round "4"]
[White "Chandradi"]
[Black "Carolina-moon"]
[Result "1-0"]
[WhiteElo "2386"]
[BlackElo "2119"]
[TimeControl "180+1"]
[EndTime "10:38:40 PDT"]
[Termination "Chandradi won on time"]

1. c4 {[%clk 0:03:00.9]} 1... f5 {[%clk 0:02:58.8]} 2. g3 {[%clk 0:02:58.5]}
2... Nf6 {[%clk 0:02:58.1]} 3. Bg2 {[%clk 0:02:58.6]} 3... g6 {[%clk 0:02:58.6]}
4. Nc3 {[%clk 0:02:58.6]} 4... Bg7 {[%clk 0:02:59.2]} 5. Nf3 {[%clk 0:02:58.3]}
5... O-O {[%clk 0:02:58.8]} 6. d4 {[%clk 0:02:54.4]} 6... d6 {[%clk 0:02:59.2]}
7. O-O {[%clk 0:02:53.6]} 7... c6 {[%clk 0:02:59.2]} 8. Bg5 {[%clk 0:02:50.5]}
8... Qe8 {[%clk 0:02:38.1]} 9. Bxf6 {[%clk 0:02:47.2]} 9... Bxf6 {[%clk
0:02:37.8]} 10. e4 {[%clk 0:02:47]} 10... e5 {[%clk 0:02:34.3]} 11. dxe5 {[%clk
0:02:38]} 11... dxe5 {[%clk 0:02:32.5]} 12. exf5 {[%clk 0:02:37.1]} 12... Bxf5
{[%clk 0:02:32]} 13. Qe2 {[%clk 0:02:34.2]} 13... Nd7 {[%clk 0:02:31.6]} 14.
Rfe1 {[%clk 0:02:32.2]} 14... Qf7 {[%clk 0:02:29.3]} 15. h3 {[%clk 0:02:30.2]}
15... Rae8 {[%clk 0:02:29]} 16. Nd2 {[%clk 0:02:28.6]} 16... Nc5 {[%clk
0:02:19.4]} 17. Nde4 {[%clk 0:02:28.9]} 17... Nxe4 {[%clk 0:02:11]} 18. Nxe4
{[%clk 0:02:29.8]} 18... Bxe4 {[%clk 0:01:51.7]} 19. Qxe4 {[%clk 0:02:30.7]}
19... Bg7 {[%clk 0:01:48.6]} 20. Re2 {[%clk 0:02:30.3]} 20... Rd8 {[%clk
0:01:44.1]} 21. Rc1 {[%clk 0:02:14.5]} 21... Rd4 {[%clk 0:01:40.3]} 22. Qc2
{[%clk 0:02:14.6]} 22... Rfd8 {[%clk 0:01:33.6]} 23. b3 {[%clk 0:02:08.6]} 23...
Bh6 {[%clk 0:01:32.5]} 24. Rce1 {[%clk 0:02:06.5]} 24... Rd2 {[%clk 0:01:30.1]}
25. Qe4 {[%clk 0:02:06.2]} 25... Bg7 {[%clk 0:01:14.8]} 26. Kh2 {[%clk
0:02:05.6]} 26... Rxe2 {[%clk 0:01:04.1]} 27. Rxe2 {[%clk 0:02:05.4]} 27... Rd4
{[%clk 0:00:57.4]} 28. Qe3 {[%clk 0:02:05]} 28... h5 {[%clk 0:00:52.9]} 29. h4
{[%clk 0:02:04.9]} 29... Kh7 {[%clk 0:00:50.3]} 30. Bh3 {[%clk 0:02:04.4]} 30...
Qf6 {[%clk 0:00:29.1]} 31. Bg2 {[%clk 0:02:03.4]} 31... a5 {[%clk 0:00:19.1]}
32. a4 {[%clk 0:02:01.1]} 32... Qf5 {[%clk 0:00:19.1]} 33. Be4 {[%clk
0:01:59.6]} 33... Qg4 {[%clk 0:00:17.9]} 34. Bc2 {[%clk 0:01:54.9]} 34... Qe6
{[%clk 0:00:09.6]} 35. Qg5 {[%clk 0:01:51.7]} 35... Qf7 {[%clk 0:00:02.7]} 36.
Qxh5+ {[%clk 0:01:49.3]} 36... Bh6 {[%clk 0:00:03]} 37. Qxe5 {[%clk 0:01:46.7]}
37... Rd2 {[%clk 0:00:01.6]} 38. Rxd2 {[%clk 0:01:44.4]} 38... Bxd2 {[%clk
0:00:01.6]} 39. Qe2 {[%clk 0:01:41]} 1-0

[Event "*** Titled Tuesday Blitz"]
[Site "Chess.com"]
[Date "2021.04.06"]
[Round "4"]
[White "Eliwood44"]
[Black "GM_Crest"]
[Result "0-1"]
[WhiteElo "2512"]
[BlackElo "2697"]
[TimeControl "180+1"]
[EndTime "10:38:45 PDT"]
[Termination "GM_Crest won by resignation"]

1. d4 {[%clk 0:03:00.9]} 1... d5 {[%clk 0:02:59.2]} 2. Nf3 {[%clk 0:03:00.9]}
2... e6 {[%clk 0:02:58.2]} 3. c4 {[%clk 0:02:52.5]} 3... c5 {[%clk 0:02:57.1]}
4. cxd5 {[%clk 0:02:49.1]} 4... exd5 {[%clk 0:02:58]} 5. g3 {[%clk 0:02:48.8]}
5... Nc6 {[%clk 0:02:57.8]} 6. Bg2 {[%clk 0:02:48.4]} 6... Nf6 {[%clk
0:02:57.9]} 7. O-O {[%clk 0:02:45.9]} 7... Be7 {[%clk 0:02:57.4]} 8. dxc5 {[%clk
0:02:45.9]} 8... Bxc5 {[%clk 0:02:54.9]} 9. a3 {[%clk 0:02:46.1]} 9... a5 {[%clk
0:02:54.2]} 10. Nc3 {[%clk 0:02:41.9]} 10... O-O {[%clk 0:02:54.3]} 11. Bg5
{[%clk 0:02:40.5]} 11... d4 {[%clk 0:02:54.7]} 12. Bxf6 {[%clk 0:02:17.5]} 12...
Qxf6 {[%clk 0:02:54.6]} 13. Ne4 {[%clk 0:02:17.4]} 13... Qf5 {[%clk 0:02:54.5]}
14. Nxc5 {[%clk 0:01:38.1]} 14... Qxc5 {[%clk 0:02:53.8]} 15. Rc1 {[%clk
0:01:38.2]} 15... Qb6 {[%clk 0:02:54]} 16. Qd2 {[%clk 0:01:32.4]} 16... Bf5
{[%clk 0:02:53.2]} 17. Rfd1 {[%clk 0:01:27.5]} 17... Rad8 {[%clk 0:02:53.1]} 18.
h4 {[%clk 0:01:17.1]} 18... Rfe8 {[%clk 0:02:51.1]} 19. h5 {[%clk 0:01:13.4]}
19... h6 {[%clk 0:02:50.9]} 20. Rc4 {[%clk 0:01:03]} 20... Bg4 {[%clk 0:02:29]}
21. Rdc1 {[%clk 0:00:59.1]} 21... Bxh5 {[%clk 0:02:25.7]} 22. Rc5 {[%clk
0:00:58.8]} 22... Bg6 {[%clk 0:02:22.8]} 23. Nh4 {[%clk 0:00:57.5]} 23... Be4
{[%clk 0:02:16.7]} 24. Bxe4 {[%clk 0:00:54.9]} 24... Rxe4 {[%clk 0:02:17.6]} 25.
Nf5 {[%clk 0:00:52.6]} 25... Re6 {[%clk 0:01:39.3]} 26. Kg2 {[%clk 0:00:19.9]}
26... Rde8 {[%clk 0:01:28.7]} 27. Qf4 {[%clk 0:00:15.8]} 27... Qxb2 {[%clk
0:01:20.8]} 28. R1c2 {[%clk 0:00:12]} 28... Qxa3 {[%clk 0:01:15.9]} 29. Rxc6
{[%clk 0:00:10]} 29... bxc6 {[%clk 0:01:14.4]} 30. Qg4 {[%clk 0:00:10.1]} 30...
Rg6 {[%clk 0:01:14.1]} 31. Qf3 {[%clk 0:00:09.5]} 31... Qxf3+ {[%clk 0:01:13.2]}
0-1

[Event "*** Titled Tuesday Blitz"]
[Site "Chess.com"]
[Date "2021.04.06"]
[Round "4"]
[White "IANOV0007"]
[Black "Fortitudine"]
[Result "1-0"]
[WhiteElo "2470"]
[BlackElo "2277"]
[TimeControl "180+1"]
[EndTime "10:38:52 PDT"]
[Termination "IANOV0007 won on time"]

1. Nf3 {[%clk 0:03:00.9]} 1... Nf6 {[%clk 0:02:57.4]} 2. g3 {[%clk 0:03:00.5]}
2... c5 {[%clk 0:02:57.7]} 3. Bg2 {[%clk 0:02:59.6]} 3... g6 {[%clk 0:02:58.3]}
4. b3 {[%clk 0:02:58.8]} 4... Bg7 {[%clk 0:02:58.3]} 5. Bb2 {[%clk 0:02:58.9]}
5... O-O {[%clk 0:02:58.9]} 6. c4 {[%clk 0:02:58.8]} 6... Nc6 {[%clk 0:02:55.6]}
7. O-O {[%clk 0:02:58.1]} 7... b6 {[%clk 0:02:54.5]} 8. d4 {[%clk 0:02:56.8]}
8... cxd4 {[%clk 0:02:55.1]} 9. Nxd4 {[%clk 0:02:55.7]} 9... Bb7 {[%clk
0:02:55.7]} 10. Nc2 {[%clk 0:02:55.7]} 10... Na5 {[%clk 0:02:47.7]} 11. Bxb7
{[%clk 0:02:50.2]} 11... Nxb7 {[%clk 0:02:48.6]} 12. Nc3 {[%clk 0:02:50.3]}
12... Nc5 {[%clk 0:02:45.7]} 13. Ne3 {[%clk 0:02:46.9]} 13... d6 {[%clk
0:02:41.4]} 14. Qc2 {[%clk 0:02:45.6]} 14... Rc8 {[%clk 0:02:40.4]} 15. Rfd1
{[%clk 0:02:43.3]} 15... Qd7 {[%clk 0:02:33.7]} 16. Kg2 {[%clk 0:02:41.9]} 16...
a6 {[%clk 0:02:26.2]} 17. Ncd5 {[%clk 0:02:39.3]} 17... Nxd5 {[%clk 0:02:23.2]}
18. Nxd5 {[%clk 0:02:39.3]} 18... Bxb2 {[%clk 0:02:13.9]} 19. Qxb2 {[%clk
0:02:36.8]} 19... b5 {[%clk 0:02:00.5]} 20. Rac1 {[%clk 0:02:31.8]} 20... Qb7
{[%clk 0:01:36.5]} 21. f3 {[%clk 0:02:28.3]} 21... f6 {[%clk 0:01:18]} 22. h4
{[%clk 0:02:23.5]} 22... Ne6 {[%clk 0:00:56.4]} 23. cxb5 {[%clk 0:02:03]} 23...
axb5 {[%clk 0:00:57.3]} 24. e4 {[%clk 0:02:01.5]} 24... Kf7 {[%clk 0:00:53.1]}
25. h5 {[%clk 0:01:59.4]} 25... Rxc1 {[%clk 0:00:45.4]} 26. Qxc1 {[%clk
0:01:57.2]} 26... g5 {[%clk 0:00:43.2]} 27. Qb1 {[%clk 0:01:43.7]} 27... Kg7
{[%clk 0:00:14.4]} 28. h6+ {[%clk 0:01:40.1]} 28... Kh8 {[%clk 0:00:11.5]} 29.
Rc1 {[%clk 0:01:33.6]} 29... Nc5 {[%clk 0:00:11]} 30. b4 {[%clk 0:01:30.8]}
30... Na4 {[%clk 0:00:11.3]} 31. Rc7 {[%clk 0:01:29.5]} 31... Qa8 {[%clk
0:00:07.3]} 32. Rxe7 {[%clk 0:01:28.6]} 32... Qc6 {[%clk 0:00:06.4]} 33. e5
{[%clk 0:01:24.3]} 33... f5 {[%clk 0:00:05.1]} 34. Nf6 {[%clk 0:01:22.7]} 1-0